bitfinex/quotes_BTCUSD_20250423
["timestamp","ask_amount","ask_price","bid_price","bid_amount"]
[1745423819759,0.10689014,92990.0,92981.0,0.34]
[1745423819980,0.10789014,92990.0,92982.0,0.21509539]
[1745423820427,0.10889014,92990.0,92987.0,0.21508146]
[1745423820641,0.001,92990.0,92989.0,0.34]
[1745423821575,0.002,93029.0,92997.0,0.01075303]
[1745423821798,0.10689014,93019.0,93003.0,0.34]
[1745423822017,0.10689014,93019.0,93003.0,0.55504459]
[1745423822385,0.10689014,93019.0,93004.0,0.215044]
[1745423822601,0.10689014,93019.0,93010.0,0.34]
[1745423823610,0.10689014,93019.0,93017.0,0.21501253]
[1745423823815,0.10689014,93019.0,93016.0,0.21501562]
[1745423824027,0.10689014,93019.0,93016.0,0.34]
[1745423824236,0.10689014,93019.0,93017.0,0.0489]
[1745423824456,0.00107,93020.0,93019.0,0.55500983]
[1745423825880,0.00107,93020.0,93019.0,0.55600983]
[1745423826337,0.00107,93020.0,93019.0,0.341]
[1745423826540,0.10796014,93020.0,93019.0,0.341]
[1745423827587,0.10796014,93020.0,93019.0,0.342]
[1745423827811,0.10796014,93020.0,93019.0,0.341]
[1745423828243,0.10896014,93020.0,93019.0,0.34]
[1745423828483,0.00207,93020.0,93019.0,0.55500983]
[1745423828697,0.00107,93020.0,93019.0,0.341]
[1745423828911,0.00107,93020.0,93019.0,0.55600983]
[1745423829137,0.00107,93020.0,93019.0,0.55500983]
[1745423830252,0.00107,93020.0,93019.0,0.34]
[1745423830900,0.00101302,93020.0,93019.0,0.341]
[1745423831128,0.00101302,93020.0,93019.0,0.34]
[1745423831544,0.00101302,93020.0,93019.0,0.341]
[1745423831764,0.00101302,93020.0,93019.0,0.342]
[1745423831986,0.00101302,93020.0,93019.0,0.341]
[1745423833624,0.00101302,93020.0,93019.0,0.342]
[1745423834322,0.10790316,93020.0,93019.0,0.342]
[1745423834548,0.10790316,93020.0,93019.0,0.002]
[1745423834783,0.11228298,93020.0,93019.0,0.002]
[1745423835040,0.10789014,93020.0,93019.0,0.001]
[1745423835265,0.11165429,93020.0,92984.0,0.34]
[1745423835476,0.10689014,93005.0,92983.0,0.08044288]
[1745423835683,0.1106543,93004.0,92983.0,0.08044288]
[1745423835901,0.10689014,92997.0,92983.0,0.08044288]
[1745423836124,0.1106546,92996.0,92983.0,0.08044288]
[1745423836923,0.1106546,92996.0,92974.0,0.08044288]
[1745423838653,0.10689014,92985.0,92974.0,0.08244288]
[1745423838858,0.00376474,92984.0,92974.0,0.08044288]
[1745423839096,0.10689014,92979.0,92974.0,0.08044288]
[1745423840543,0.10689014,92979.0,92968.0,0.34]
[1745423841018,0.10689014,92979.0,92955.0,0.08730164]
[1745423841264,0.10789014,92979.0,92955.0,0.08730164]
[1745423841463,0.00376524,92978.0,92955.0,0.08730164]
[1745423841697,0.10689014,92974.0,92955.0,0.0005088]
[1745423842466,0.10689014,92974.0,92961.0,0.34]
[1745423843585,0.10689014,92974.0,92956.0,0.001]
[1745423844052,0.10689014,92974.0,92961.0,0.001]
[1745423844679,0.10689014,92974.0,92961.0,0.002]
[1745423844885,0.10689014,92974.0,92961.0,0.001]
[1745423845761,0.10689014,92974.0,92956.0,0.001]
[1745423846191,0.10689014,92974.0,92956.0,0.003]
[1745423846919,0.00376541,92973.0,92956.0,0.003]
[1745423847129,0.10689014,92972.0,92956.0,0.001]
[1745423847564,0.10689014,92972.0,92956.0,0.003]
[1745423848000,0.10689014,92972.0,92956.0,0.004]
[1745423848001,0.003765,92971.0,92956.0,0.004]
[1745423848240,0.10689014,92970.0,92956.0,0.003]
[1745423848439,0.0037655,92969.0,92956.0,0.003]
[1745423848647,0.10689014,92968.0,92956.0,0.004]
[1745423848865,0.10689014,92962.0,92956.0,0.004]
[1745423849046,0.10689014,92962.0,92956.0,0.001]
[1745423849243,0.10689014,92962.0,92956.0,0.002]
[1745423849546,0.10689014,92962.0,92956.0,0.004]
[1745423849965,0.10689014,92962.0,92956.0,0.002]
[1745423850395,0.10789014,92962.0,92956.0,0.002]
[1745423850813,0.10789014,92962.0,92956.0,0.001]
[1745423851054,0.10789014,92962.0,92951.0,0.3428478]
[1745423851262,0.001,93019.0,92971.0,0.34]
[1745423851500,0.10689014,93000.0,92981.0,0.34]
[1745423851718,0.10689014,93000.0,92991.0,0.34]
[1745423851932,0.10689014,93000.0,92992.0,0.0496]
[1745423853309,0.10689014,93000.0,92981.0,0.34]
[1745423853519,0.10689014,92999.0,92981.0,0.34]
[1745423853757,0.10689014,92999.0,92979.0,0.0476]
[1745423853970,0.10689014,92999.0,92981.0,0.34]
[1745423854826,0.10689014,92999.0,92984.0,0.34]
[1745423855042,0.10689014,92999.0,92981.0,0.35075488]
[1745423855494,0.10689014,92999.0,92982.0,0.01075476]
[1745423855731,0.10689014,92999.0,92981.0,0.34]
[1745423856595,0.10689014,92999.0,92981.0,0.341]
[1745423857045,0.10689014,92999.0,92983.0,0.01075465]
[1745423857260,0.10689014,92999.0,92981.0,0.001]
[1745423857915,0.01068901,92998.0,92981.0,0.001]
[1745423858146,0.10689014,92997.0,92981.0,0.001]
[1745423859797,0.10689014,92997.0,92979.0,0.0476]
[1745423860045,0.10689014,92997.0,92981.0,0.34]
[1745423861879,0.10689014,92997.0,92983.0,0.001]
[1745423862105,0.10689014,92997.0,92983.0,0.01175465]
[1745423862326,0.10689014,92997.0,92981.0,0.34]
[1745423863044,0.10689014,92997.0,92981.0,0.341]
[1745423863891,0.10689014,92997.0,92988.0,0.35075407]
[1745423864116,0.10689014,92997.0,92988.0,0.34]
[1745423864367,0.0004241,93028.0,92988.0,0.34]
[1745423864635,0.10689014,93019.0,92991.0,0.34]
[1745423864861,0.10689014,93019.0,93009.0,0.46909158]
[1745423865084,0.10689014,93019.0,93010.0,0.34]
[1745423865997,0.0004241,93028.0,93011.0,0.0457]
[1745423866217,0.004,93019.0,93011.0,0.0457]
[1745423866433,0.007,93019.0,93011.0,0.0457]
[1745423866648,0.003,93019.0,93011.0,0.0457]
[1745423866873,0.003,93019.0,93011.0,0.05645141]
[1745423867087,0.003,93019.0,93018.0,0.55501214]
[1745423867734,0.00021628,93047.0,93030.0,0.46909158]
[1745423867951,0.10689014,93046.0,93030.0,0.46909158]
[1745423868409,0.10689014,93046.0,93023.0,0.29059125]
[1745423868410,0.10689014,93044.0,93023.0,0.29059125]
[1745423868633,0.10689014,93044.0,93011.0,0.0477]
[1745423868863,0.10689014,93044.0,93011.0,0.05645141]
[1745423869101,0.10689014,93044.0,93011.0,0.0457]
[1745423869329,0.10689014,93044.0,93012.0,0.0107513]
[1745423869823,0.10789014,93044.0,93014.0,0.34]
[1745423870052,0.10689014,93044.0,93014.0,0.34]
[1745423870476,0.10689014,93044.0,93021.0,0.34]
[1745423871596,0.10689014,93040.0,93014.0,0.34]
[1745423872722,0.10689014,93040.0,93020.0,0.46909158]
[1745423873159,0.10689014,93040.0,93021.0,0.34]
[1745423873599,0.10689014,93040.0,93014.0,0.22002072]
[1745423873600,0.10689014,93040.0,93032.0,0.045]
[1745423873811,0.00021628,93047.0,93032.0,0.045]
[1745423874038,0.10689014,93046.0,93032.0,0.045]
[1745423874457,0.00021628,93047.0,93038.0,0.34]
[1745423874668,0.00021628,93047.0,93041.0,0.34]
[1745423874879,0.00021628,93047.0,93044.0,0.0107476]
[1745423875083,0.00021628,93047.0,93046.0,0.34]
[1745423875510,0.00021628,93047.0,93046.0,0.35454085]
[1745423876364,0.000424,93057.0,93046.0,0.45244085]
[1745423876585,0.000424,93057.0,93048.0,0.40384085]
[1745423876802,0.000424,93057.0,93050.0,0.35454085]
[1745423877018,0.002,93069.0,93061.0,0.56945364]
[1745423877462,0.002,93069.0,93061.0,0.88591264]
[1745423877912,0.002,93069.0,93061.0,0.76330364]
[1745423878135,0.002,93069.0,93061.0,0.68402664]
[1745423878869,0.002,93069.0,93061.0,0.38781467]
[1745423879088,0.002,93069.0,93061.0,0.35454085]
[1745423879744,0.002,93069.0,93061.0,0.48928985]
[1745423879948,0.002,93069.0,93061.0,0.52356367]
[1745423880189,0.002,93069.0,93061.0,0.57276367]
[1745423880573,0.002,93069.0,93068.0,0.60409663]
[1745423880771,0.002,93069.0,93068.0,2.17143062]
[1745423880972,0.002,93069.0,93068.0,2.17512742]
[1745423881149,0.002,93069.0,93068.0,2.22482742]
[1745423881355,0.002,93069.0,93068.0,1.46379644]
[1745423881580,0.002,93069.0,93068.0,1.49498442]
[1745423881825,0.002,93069.0,93068.0,0.57348085]
[1745423881967,0.002,93069.0,93068.0,0.0492]
[1745423882177,0.002,93069.0,93068.0,0.12004]
[1745423882607,0.002,93069.0,93067.0,0.12004]
[1745423882851,0.002,93069.0,93068.0,0.34]
[1745423883053,0.002,93069.0,93068.0,0.46204]
[1745423883318,0.002,93069.0,93068.0,0.52288085]
[1745423883553,0.002,93089.0,93088.0,0.61719131]
[1745423883771,0.002,93089.0,93088.0,0.3878]
[1745423884202,0.002,93089.0,93088.0,0.50923099]
[1745423884414,0.002,93089.0,93088.0,0.40234085]
[1745423884833,0.002,93089.0,93088.0,0.4377544]
[1745423885062,0.0044239,93100.0,93094.0,0.35454085]
[1745423885274,0.0044239,93100.0,93094.0,0.34]
[1745423885499,0.0044239,93100.0,93094.0,0.5097944]
[1745423885704,0.0044239,93100.0,93094.0,1.95195865]
[1745423886409,0.0044239,93100.0,93098.0,0.01454085]
[1745423886607,0.0044239,93100.0,93099.0,0.95605999]
[1745423886823,0.0044239,93100.0,93099.0,1.02700265]
[1745423887036,0.00016429,93113.0,93106.0,0.01074044]
[1745423887257,0.00016429,93113.0,93102.0,0.34]
[1745423887471,0.00016429,93113.0,93100.0,0.55077537]
[1745423887472,0.00016429,93113.0,93106.0,0.03541355]
[1745423887681,0.00016429,93113.0,93100.0,0.50462069]
[1745423887682,0.00016429,93113.0,93107.0,0.11984]
[1745423887890,0.00016429,93113.0,93108.0,0.34]
[1745423888125,0.00016429,93113.0,93110.0,0.34]
[1745423888316,0.00016429,93113.0,93110.0,0.55479856]
[1745423888497,0.00016429,93113.0,93110.0,0.34]
[1745423888705,0.00016429,93113.0,93110.0,0.55479724]
[1745423888917,0.00016429,93113.0,93110.0,0.56553722]
[1745423889120,0.00016429,93113.0,93110.0,0.34]
[1745423889537,0.00016429,93113.0,93112.0,0.34]
[1745423889965,0.00016429,93113.0,93112.0,0.35454085]
[1745423890401,0.00016429,93113.0,93112.0,0.40054085]
[1745423890627,0.00016429,93113.0,93112.0,0.046]
[1745423891324,0.00016429,93113.0,93110.0,0.34]
[1745423892203,0.00116429,93113.0,93110.0,0.35454085]
[1745423892423,0.00016429,93113.0,93110.0,0.36528083]
[1745423892897,0.00016429,93113.0,93112.0,0.34]
[1745423893820,0.00016429,93113.0,93110.0,0.35454085]
[1745423894283,0.00016429,93113.0,93112.0,0.56933593]
[1745423894517,0.00016429,93113.0,93112.0,0.66703593]
[1745423894754,0.00016429,93113.0,93112.0,0.78683593]
[1745423895237,0.00016429,93113.0,93112.0,0.57204085]
[1745423895475,0.00016429,93129.0,93114.0,0.34]
[1745423895711,0.00016429,93129.0,93112.0,0.5575]
[1745423895712,0.00016429,93129.0,93113.0,0.35454085]
[1745423895937,0.10689014,93128.0,93113.0,0.34]
[1745423896393,0.10689014,93128.0,93115.0,0.34]
[1745423897535,0.10789014,93128.0,93114.0,0.1208]
[1745423897985,0.10689014,93115.0,93114.0,0.001]
[1745423898430,0.15569014,93115.0,93114.0,0.001]
[1745423898654,0.15569014,93115.0,93080.0,0.46909158]
[1745423898863,0.10689014,93112.0,93081.0,0.00300778]
[1745423899330,0.10689014,93103.0,93077.0,0.1198]
[1745423899538,0.01068901,93102.0,93077.0,0.1198]
[1745423899761,0.10689014,93101.0,93074.0,0.08679284]
[1745423900412,0.10689014,93100.0,93074.0,0.08679284]
[1745423900616,0.10689014,93099.0,93081.0,0.001]
[1745423900836,0.10689014,93096.0,93081.0,0.001]
[1745423900999,0.12276806,93096.0,93081.0,0.001]
[1745423901219,0.10689014,93093.0,93081.0,0.001]
[1745423901977,0.10689014,93093.0,93074.0,0.08779284]
[1745423902198,0.10689014,93093.0,93074.0,0.08979284]
[1745423902409,0.10689014,93093.0,93074.0,0.08879284]
[1745423902611,0.10889014,93093.0,93074.0,0.08679284]
[1745423902835,0.10689014,93093.0,93074.0,0.08679284]
[1745423903031,0.10789014,93093.0,93074.0,0.08679284]
[1745423903451,0.10689014,93093.0,93074.0,0.08679284]
[1745423903874,0.10689014,93093.0,93074.0,0.08779284]
[1745423904899,0.1198,93118.0,93115.0,0.28250986]
[1745423905127,0.10689014,93116.0,93115.0,0.28250986]
[1745423905906,0.13465915,93116.0,93115.0,0.28250986]
[1745423906128,0.10689014,93116.0,93115.0,0.28250986]
[1745423906324,0.10889014,93116.0,93115.0,0.28250986]
[1745423907914,0.10689014,93116.0,93115.0,0.28250986]
[1745423908128,0.11189014,93116.0,93115.0,0.28250986]
[1745423908534,0.10689014,93116.0,93115.0,0.28250986]
[1745423908943,0.11189014,93116.0,93115.0,0.28250986]
[1745423909144,0.12307915,93116.0,93115.0,0.28250986]
[1745423909377,0.52389014,93116.0,93115.0,0.28250986]
[1745423910235,0.52389014,93116.0,93115.0,0.28297296]
[1745423910961,0.51989014,93116.0,93115.0,0.28297296]
[1745423911205,0.52189014,93116.0,93115.0,0.28297296]
[1745423911419,0.52489014,93116.0,93115.0,0.28297296]
[1745423914707,0.15818376,93114.0,93076.0,0.0463468]
[1745423914919,0.10689014,93100.0,93082.0,0.00046055]
[1745423915800,0.15818376,93113.0,93082.0,0.00046055]
[1745423915801,0.10689014,93096.0,93082.0,0.00046055]
[1745423916016,0.10689014,93093.0,93082.0,0.00046055]
[1745423916476,0.2650739,93092.0,93082.0,0.00046055]
[1745423916712,0.002,93100.0,93082.0,0.00046055]
[1745423916713,0.10689014,93083.0,93082.0,0.00046055]
[1745423917581,0.001,93081.0,93076.0,0.0008468]
[1745423917815,0.22119014,93077.0,93051.0,0.002]
[1745423918039,0.10689014,93053.0,93051.0,0.002]
[1745423918271,0.2650739,93052.0,93051.0,0.002]
[1745423918508,0.29158129,93052.0,93051.0,0.002]
[1745423919137,0.2650739,93052.0,93051.0,0.002]
[1745423919350,0.26553006,93052.0,93051.0,0.002]
[1745423919972,0.26653006,93052.0,93051.0,0.002]
[1745423920407,0.15618376,93050.0,93029.0,0.0481]
[1745423920631,0.10689014,93044.0,93029.0,0.0481]
[1745423922137,0.10789014,93044.0,93029.0,0.0481]
[1745423923796,0.10989014,93044.0,93029.0,0.0481]
[1745423925120,0.10989014,93044.0,93025.0,0.0477]
[1745423925360,0.2670739,93044.0,93020.0,0.000848]
[1745423925985,0.2660739,93044.0,93020.0,0.000848]
[1745423926192,0.29278129,93044.0,93020.0,0.000848]
[1745423926408,0.29578129,93044.0,93020.0,0.000848]
[1745423927213,0.29378129,93044.0,93020.0,0.000848]
[1745423927417,0.29578129,93044.0,93020.0,0.000848]
[1745423927629,0.29278129,93044.0,93020.0,0.000848]
[1745423927798,0.29678129,93044.0,93020.0,0.000848]
[1745423928211,0.30478129,93044.0,93043.0,0.0018468]
[1745423928416,0.36178129,93044.0,93043.0,0.0018468]
[1745423928823,0.15233696,93025.0,93020.0,0.000848]
[1745423929028,0.2744608,93025.0,93020.0,0.000848]
[1745423930374,0.2592271,93025.0,93020.0,0.000848]
[1745423930576,0.2622271,93025.0,93020.0,0.000848]
[1745423930921,0.2592271,93025.0,93020.0,0.000848]
[1745423931137,0.2622271,93025.0,93020.0,0.000848]
[1745423931349,0.2672271,93025.0,93020.0,0.000848]
[1745423931551,0.29804981,93025.0,93020.0,0.000848]
[1745423931792,0.29904981,93025.0,93020.0,0.000848]
[1745423932001,0.34904981,93025.0,93020.0,0.000848]
[1745423932211,0.2712271,93025.0,93020.0,0.000848]
[1745423932436,0.2642271,93025.0,93020.0,0.000848]
[1745423932649,0.11189014,93025.0,93020.0,0.000848]
[1745423932877,0.10689014,93025.0,93022.0,0.0481]
[1745423933097,0.11289014,93025.0,93024.0,0.0018474]
[1745423933537,0.11817915,93025.0,93024.0,0.0008474]
[1745423933771,0.12017915,93025.0,93024.0,0.00859776]
[1745423934002,0.12117915,93025.0,93024.0,0.00859776]
[1745423934215,0.10689014,93025.0,93024.0,0.00859776]
[1745423934424,0.11757915,93025.0,93024.0,0.01059776]
[1745423934697,0.10689014,93025.0,93024.0,0.00859776]
[1745423934844,0.10689014,93025.0,93024.0,0.01059776]
[1745423935531,0.10689014,93025.0,93024.0,0.01159776]
[1745423936917,0.10689014,93025.0,93024.0,0.06119776]
[1745423937123,0.10689014,93025.0,93024.0,0.11069776]
[1745423937359,0.10689014,93025.0,93024.0,0.10769776]
[1745423937526,0.10689014,93025.0,93024.0,0.10369776]
[1745423937738,0.10689014,93025.0,93024.0,0.10769776]
[1745423937946,0.10689014,93025.0,93024.0,0.01359776]
[1745423938569,0.10689014,93025.0,93024.0,0.01159776]
[1745423938804,0.10689014,93025.0,93024.0,0.01259776]
[1745423939233,0.10689014,93025.0,93024.0,0.01059776]
[1745423939638,0.10689014,93025.0,93024.0,0.01259776]
[1745423939820,0.11757915,93025.0,93024.0,0.01259776]
[1745423939972,0.11757915,93025.0,93024.0,0.00959776]
[1745423940151,0.11857915,93025.0,93024.0,0.00959776]
[1745423941437,0.10789014,93025.0,93024.0,0.00959776]
[1745423941876,0.10689014,93025.0,93024.0,0.00959776]
[1745423942702,0.10689014,93025.0,93024.0,0.10189776]
[1745423942906,0.11972,93079.0,93029.0,0.001]
[1745423943118,0.10689014,93051.0,93040.0,0.46909158]
[1745423943317,0.10689014,93051.0,93041.0,0.39]
[1745423943549,0.11972,93079.0,93048.0,0.051]
[1745423943768,0.11972,93079.0,93051.0,0.05]
[1745423944187,0.11972,93079.0,93049.0,0.00775036]
[1745423944392,0.0024252,93089.0,93051.0,0.05]
[1745423944569,0.10689014,93085.0,93069.0,0.46909158]
[1745423944808,0.10689014,93085.0,93066.0,0.05]
[1745423945030,0.10689014,93085.0,93070.0,0.47684194]
[1745423945477,0.10689014,93085.0,93071.0,0.00775036]
[1745423945698,0.10689014,93085.0,93072.0,0.00761704]
[1745423946160,0.10689014,93085.0,93074.0,0.33969]
[1745423946379,0.10689014,93085.0,93075.0,0.05]
[1745423946593,0.10689014,93085.0,93075.0,0.05761704]
[1745423946861,0.10689014,93085.0,93076.0,0.01516261]
[1745423947057,0.10689014,93084.0,93076.0,0.01516261]
[1745423947309,0.10689014,93084.0,93077.0,0.00741225]
[1745423947533,0.10689014,93082.0,93077.0,0.01516261]
[1745423947758,0.10689014,93079.0,93078.0,0.00761704]
[1745423948204,0.10689014,93079.0,93078.0,0.0153674]
[1745423948649,0.10689014,93079.0,93078.0,0.01541397]
[1745423948874,0.11757915,93079.0,93078.0,0.01541397]
[1745423949784,0.10689014,93079.0,93078.0,0.01541397]
[1745423950270,0.11089014,93079.0,93078.0,0.01541397]
[1745423950691,0.10789014,93079.0,93078.0,0.01541397]
[1745423950932,0.11189014,93079.0,93078.0,0.01541397]
[1745423951378,0.11189014,93079.0,93078.0,0.00766361]
[1745423951585,0.11089014,93079.0,93078.0,0.00766361]
[1745423951761,0.11189014,93079.0,93078.0,0.00766361]
[1745423952193,0.10789014,93079.0,93078.0,0.00766361]
[1745423952407,0.11189014,93079.0,93078.0,0.01542566]
[1745423952838,0.10889014,93079.0,93078.0,0.01542566]
[1745423953275,0.12277915,93079.0,93078.0,0.01542566]
[1745423953488,0.12177915,93079.0,93078.0,0.01542566]
[1745423953918,0.11189014,93079.0,93078.0,0.00766361]
[1745423954427,0.11189014,93079.0,93078.0,4.657e-05]
[1745423954622,0.11189014,93079.0,93078.0,0.04774657]
[1745423954623,0.11289014,93079.0,93078.0,0.04774657]
[1745423955263,0.11089014,93079.0,93078.0,0.05550364]
[1745423955477,0.11189014,93079.0,93078.0,0.49150364]
[1745423955943,0.002,93079.0,93078.0,0.49250364]
[1745423956150,0.00088136,93089.0,93088.0,0.05]
[1745423956448,0.00088136,93089.0,93088.0,0.44455707]
[1745423956647,0.00088136,93089.0,93088.0,0.45216138]
[1745423956859,0.00088136,93089.0,93088.0,0.45116138]
[1745423957531,0.00088136,93089.0,93088.0,0.01536138]
[1745423957532,0.1087715,93089.0,93088.0,0.01536138]
[1745423957782,0.11964865,93089.0,93088.0,0.008]
[1745423958452,0.11964865,93089.0,93088.0,0.004]
[1745423958672,0.1087715,93089.0,93088.0,0.008]
[1745423959528,0.1087715,93089.0,93088.0,0.004]
[1745423959730,0.1087715,93089.0,93088.0,0.052]
[1745423959954,0.1087715,93089.0,93088.0,0.05874673]
[1745423960160,0.1087715,93089.0,93088.0,0.44774673]
[1745423960386,0.00188136,93089.0,93088.0,0.49574673]
[1745423960599,0.00388136,93089.0,93088.0,0.50313781]
[1745423960995,0.00188136,93089.0,93088.0,0.51073071]
[1745423961393,0.00188136,93089.0,93088.0,0.51873071]
[1745423961838,0.001,93109.0,93100.0,0.05]
[1745423962086,0.10689014,93108.0,93101.0,0.05]
[1745423962502,0.10689014,93108.0,93102.0,0.00739108]
[1745423962696,0.10689014,93108.0,93102.0,0.02273071]
[1745423962903,0.10689014,93108.0,93103.0,0.00774673]
[1745423963527,0.10689014,93108.0,93104.0,0.01533963]
[1745423963974,0.10689014,93108.0,93105.0,0.00774673]
[1745423964384,0.001,93109.0,93106.0,0.0075929]
[1745423964595,0.001,93109.0,93107.0,0.00774673]
[1745423964806,0.001,93109.0,93106.0,0.0075929]
[1745423964807,0.001,93109.0,93108.0,0.15274673]
[1745423965011,0.000425,93127.0,93116.0,0.05]
[1745423965223,0.000425,93127.0,93116.0,0.72490513]
[1745423965425,0.000425,93127.0,93122.0,0.65357201]
[1745423965630,0.000425,93127.0,93122.0,0.70217201]
[1745423965997,0.000425,93127.0,93122.0,0.49514673]
[1745423966214,0.000425,93127.0,93122.0,0.50273963]
[1745423966421,0.000425,93127.0,93122.0,0.51011928]
[1745423966623,0.000425,93127.0,93126.0,0.39]
[1745423966955,0.000425,93127.0,93126.0,0.44257965]
[1745423967201,0.002,93169.0,93144.0,0.21472129]
[1745423967361,0.002,93169.0,93144.0,0.83721419]
[1745423967729,0.002,93169.0,93145.0,0.4851]
[1745423968096,0.002,93169.0,93145.0,0.50022638]
[1745423968310,0.002,93169.0,93148.0,0.05]
[1745423968639,0.00245671,93149.0,93148.0,0.60471207]
[1745423968841,0.00245671,93149.0,93148.0,0.61968462]
[1745423969181,0.00245671,93149.0,93148.0,0.62743135]
[1745423969585,0.000425,93161.0,93150.0,0.60470746]
[1745423969811,0.000425,93161.0,93150.0,0.60475403]
[1745423970016,0.000425,93161.0,93150.0,0.61250076]
[1745423970185,0.000425,93161.0,93150.0,0.61988041]
[1745423970794,0.000425,93161.0,93150.0,0.62847331]
[1745423971158,0.000425,93161.0,93150.0,0.63347331]
[1745423971358,0.000425,93161.0,93150.0,0.62847331]
[1745423971572,0.000425,93161.0,93152.0,0.60470285]
[1745423971767,0.000425,93161.0,93152.0,0.61244958]
[1745423971969,0.000425,93161.0,93152.0,0.61982923]
[1745423972202,0.000425,93161.0,93152.0,0.75714213]
[1745423972820,0.000425,93161.0,93152.0,0.62742213]
[1745423973186,0.000425,93161.0,93152.0,0.64496298]
[1745423973394,0.000425,93161.0,93160.0,0.65238441]
[1745423973743,0.000425,93161.0,93160.0,0.66751079]
[1745423973946,0.000425,93161.0,93160.0,0.67510369]
[1745423974151,0.000425,93161.0,93160.0,0.46041928]
[1745423975522,0.000425,93161.0,93160.0,0.46641928]
[1745423976100,0.000425,93161.0,93160.0,0.46941928]
[1745423976501,0.000425,93161.0,93160.0,0.46641928]
[1745423976732,0.10731514,93161.0,93160.0,0.36271928]
[1745423976884,0.11164625,93161.0,93160.0,0.41571928]
[1745423977084,0.10731514,93161.0,93160.0,0.02771928]
[1745423977422,0.11164625,93161.0,93160.0,0.02471928]
[1745423977547,0.11164625,93161.0,93160.0,0.02671928]
[1745423977757,0.11164625,93161.0,93160.0,0.02471928]
[1745423977758,0.12285333,93161.0,93160.0,0.02471928]
[1745423977970,0.11264625,93161.0,93160.0,0.01733963]
[1745423978399,0.11264625,93161.0,93160.0,0.002]
[1745423979686,0.11264625,93161.0,93150.0,0.00104657]
[1745423979899,0.00575611,93161.0,93160.0,0.001]
[1745423980119,0.11264625,93161.0,93160.0,0.001]
[1745423980325,0.11264625,93161.0,93160.0,0.002]
[1745423980736,0.11664625,93161.0,93150.0,0.00104657]
[1745423980945,0.10689014,93160.0,93150.0,0.00104657]
[1745423981158,0.00417969,93159.0,93151.0,0.00768487]
[1745423981360,0.10689014,93158.0,93151.0,0.00768487]
[1745423981981,0.00417969,93157.0,93152.0,0.00768487]
[1745423982218,0.10689014,93156.0,93152.0,0.00768487]
[1745423982421,0.10689014,93156.0,93153.0,0.00768487]
[1745423982635,0.00417969,93155.0,93154.0,0.00768487]
[1745423982898,0.10689014,93155.0,93154.0,0.00768487]
[1745423983136,0.11106983,93155.0,93154.0,0.0152274]
[1745423983812,0.11206983,93155.0,93154.0,0.0152274]
[1745423984035,0.11306983,93155.0,93154.0,0.0152274]
[1745423984258,0.11306983,93155.0,93154.0,0.00768487]
[1745423984259,0.10806983,93155.0,93154.0,0.00768487]
[1745423984442,0.11206983,93155.0,93154.0,0.00768487]
[1745423984661,0.11106983,93155.0,93154.0,0.00768487]
[1745423985136,0.11206983,93155.0,93154.0,0.00768487]
[1745423985557,0.11206983,93155.0,93150.0,4.657e-05]
[1745423985558,0.11206983,93155.0,93151.0,0.00768487]
[1745423985769,0.10689014,93152.0,93151.0,0.00768487]
[1745423986529,0.11106983,93152.0,93151.0,0.00768487]
[1745423987215,0.11406983,93152.0,93151.0,0.00768487]
[1745423987665,0.11306983,93152.0,93151.0,0.00768487]
[1745423987891,0.11206983,93152.0,93151.0,0.00768487]
[1745423988123,0.11406983,93152.0,93151.0,0.00768487]
[1745423988340,0.11506983,93152.0,93151.0,0.01506076]
[1745423988958,0.11089014,93152.0,93151.0,0.01506076]
[1745423989172,0.11089014,93152.0,93151.0,0.02263807]
[1745423989384,0.10889014,93152.0,93151.0,0.02263807]
[1745423989643,0.10689014,93152.0,93151.0,0.02263807]
[1745423989876,0.10789014,93152.0,93151.0,0.02263807]
[1745423990105,0.22319014,93152.0,93151.0,0.02263807]
[1745423990326,0.11089014,93152.0,93151.0,0.02263807]
[1745423990542,0.10689014,93152.0,93151.0,0.02263807]
[1745423990992,0.10789014,93152.0,93151.0,0.02263807]
[1745423991213,0.10989014,93152.0,93151.0,0.02263807]
[1745423991458,0.11089014,93152.0,93151.0,0.02263807]
[1745423992550,0.10889014,93152.0,93151.0,0.02263807]
[1745423992932,0.10989014,93152.0,93151.0,0.02263807]
[1745423995145,0.10989014,93152.0,93151.0,0.0149532]
[1745423995685,0.10989014,93152.0,93151.0,0.00737589]
[1745423998784,0.10789014,93152.0,93151.0,0.00737589]
[1745423999011,0.10889014,93152.0,93151.0,0.00737589]
[1745423999204,0.51989014,93152.0,93151.0,0.00737589]
[1745423999447,0.51889014,93152.0,93151.0,0.00737589]
[1745423999992,0.51989014,93152.0,93151.0,0.00737589]
[1745424000255,0.51989014,93152.0,93134.0,0.0451]
[1745424001028,0.51989014,93152.0,93135.0,0.01128901]
[1745424001269,0.51989014,93152.0,93141.0,0.08679284]
[1745424001922,0.51889014,93152.0,93141.0,0.08679284]
[1745424002710,0.51889014,93152.0,93141.0,0.08779284]
[1745424002937,0.51889014,93152.0,93141.0,0.08679284]
[1745424003150,0.412,93151.0,93141.0,0.43852925]
[1745424003358,0.001,93155.0,93151.0,0.42679284]
[1745424003547,0.10689014,93154.0,93151.0,0.42679284]
[1745424004037,0.10689014,93154.0,93151.0,0.34]
[1745424004249,0.10689014,93154.0,93147.0,0.0467]
[1745424004936,0.11772165,93154.0,93147.0,0.0467]
[1745424005198,0.10689014,93154.0,93147.0,0.0467]
[1745424005473,0.001,93155.0,93147.0,0.0467]
[1745424005474,0.001,93155.0,93147.0,0.3867]
[1745424005671,0.10689014,93154.0,93151.0,0.006]
[1745424006091,0.10689014,93154.0,93147.0,0.3867]
[1745424006307,0.01078901,93153.0,93141.0,0.001]
[1745424006552,0.10689014,93150.0,93147.0,0.008]
[1745424006764,0.10689014,93148.0,93147.0,0.008]
[1745424006979,0.10689014,93148.0,93141.0,0.001]
[1745424007192,0.10689014,93143.0,93141.0,0.001]
[1745424007406,0.11757915,93142.0,93141.0,0.001]
[1745424008496,0.41054329,93126.0,93116.0,0.06397215]
[1745424008711,0.10689014,93125.0,93116.0,0.0640218]
[1745424010226,0.10689014,93125.0,93116.0,0.0650218]
[1745424012204,0.10689014,93125.0,93116.0,0.0640218]
[1745424012457,0.10689014,93125.0,93116.0,0.0650218]
[1745424012881,0.01068901,93124.0,93116.0,0.0650218]
[1745424013097,0.10689014,93123.0,93116.0,0.0650218]